Cogmind - Beta 15 @@@ ROGUE MODE // 2025.08.23 @ 21:00:03 Player: Anting Result: Self-destructed Performance ------------- Evolutions (4) 2000 Regions Visited (4) 800 Robots Destroyed (40) 200 Value Destroyed (811) 811 Prototype IDs (5) 100 Alien Tech Used (0) 0 Bonus (800) 800 TOTAL SCORE: 4711 Bonus ------- Registered with UFD 300 Met Optimus in HQ 500 Cogmind --------- Core Integrity 374/850 Matter 235/300 Energy 23/100 System Corruption 3% Temperature Cool (0) Movement Core (350) Ox6 Location -6/Factory Parts ------- > --- POWER (2) -------- (None) > --- PROPULSION (5) --- (None) > --- UTILITY (6) ------ Medium Storage Unit Improved Signal Interpreter System Shield > --- WEAPON (2) ------- Heavy Plasma Cannon > --- INVENTORY (10) --- Deep Structural Scanner Enhanced Optical Array IFF Parser Stasis Canceller Cloaking Device Hacking Suite A0-MCA's Component Scanner DRS Beacon (Ready) Peak State ------------ > --- POWER ------------ Light Deuterium Engine Micro Nuclear Core > --- PROPULSION ------- Improved Hover Unit Gravmag System Gravmag Array Improved Cesium-ion Thruster > --- UTILITY ---------- Medium Storage Unit Advanced Sensor Array Improved Signal Interpreter Hacking Suite System Shield System Shield > --- WEAPON ----------- Heavy Plasma Cannon Heavy Pick > --- INVENTORY -------- Deep Structural Scanner Enhanced Optical Array IFF Parser Stasis Canceller Cloaking Device Hardened Medium Armor Plating Hacking Suite A0-MCA's Component Scanner Mini Grenade Launcher DRS Beacon [Rating: 60] Favorites ----------- Power Ion Engine Engine Ion Engine Power Core Micro Nuclear Core Propulsion Light Treads Treads Light Treads Leg Aluminum Leg Hover Unit Gravmag Array Flight Unit Flight Unit Utility Large Storage Unit Device Heat Sink Storage Large Storage Unit Processor Improved Signal Interpreter Hackware System Shield Protection Hardened Medium Armor Plating Weapon Assault Rifle Energy Cannon Heavy Plasma Cannon Ballistic Gun Assault Rifle Launcher Grenade Launcher Impact Weapon Heavy Flail Slashing Weapon Katana Piercing Weapon Heavy Pick Special Melee Weapon Improved Datajack Build | -11 -10 -10 -8 -6 ------- Run | Yrd Mat Sub Scr Fac Slots Evolved 8 | . . . . 8 Power 1 | . . . . 1 Propulsion 3 | . . . . 3 Utility 4 | . . . . 4 Weapon . | . . . . . Parts Attached 46 | 6 2 1 7 30 Power 6 | 1 . . . 5 Engine 4 | 1 . . . 3 Core 2 | . . . . 2 Reactor . | . . . . . Propulsion 14 | 2 . . 4 8 Treads 2 | 2 . . . . Leg 2 | . . . 2 . Wheel . | . . . . . Hover 4 | . . . . 4 Flight 6 | . . . 2 4 Utility 16 | 1 2 . 3 10 Device 6 | . 1 . 1 4 Storage 3 | 1 1 . 1 . Processor 2 | . . . 1 1 Hackware 4 | . . . . 4 Protection 1 | . . . . 1 Artifact . | . . . . . Weapon 10 | 2 . 1 . 7 Energy Gun . | . . . . . Energy Cannon 1 | . . . . 1 Ballistic Gun 2 | 2 . . . . Ballistic Cannon . | . . . . . Launcher 3 | . . 1 . 2 Special Weapon . | . . . . . Impact Weapon 1 | . . . . 1 Slashing Weapon 1 | . . . . 1 Piercing Weapon 1 | . . . . 1 Special Melee Weapon 1 | . . . . 1 Unidentified Prototypes 2 | . . . . 2 Parts Lost 17 | . . . . 17 Power 3 | . . . . 3 Propulsion 7 | . . . . 7 Utility 5 | . . . . 5 Weapon 2 | . . . . 2 Highest Loss Streak 12 | . . . . 12 To Critical Strikes . | . . . . . Average Backups 10 | 2 13 14 8 8 Power . | . . . . . Propulsion 3 | 1 7 9 2 . Utility 3 | . . 1 3 7 Weapon 2 | . 3 4 2 . Tool/Special . | . . . . . Unused Backups 35 | . 2 4 21 8 Power 2 | . 1 . 1 . Propulsion 8 | . 1 1 6 . Utility 18 | . . . 10 8 Weapon 6 | . . 3 3 . Tool/Special 1 | . . . 1 . Average Slot Usage (%) 86 | . 87 100 83 86 Engine 11 | . 14 14 10 8 Treads 17 | . 28 28 20 . Leg 1 | . . . 2 . Hover 3 | . . . . 13 Flight 2 | . . . . 10 Device 7 | . 2 14 10 7 Storage 10 | . 14 14 11 5 Processor 3 | . . . 5 6 Hackware 4 | . . . . 18 Ballistic Gun 13 | . 28 22 10 . Launcher 5 | . . 5 10 2 Piercing Weapon 1 | . . . . 5 Peak Build Rating 60 | 6 8 8 11 60 Average Rating 18 | 4 7 8 7 49 On Entrance 6 | . 6 8 8 9 Naked Turns . | . . . . . Heaviest Build 35 | 14 34 31 31 35 Greatest Support 40 | 40 40 40 40 36 Greatest Overweight (x) 4 | . . . . 4 Average Overweight (x) . | . . . . . Largest Inventory Capacity 15 | 8 15 15 15 15 Average Capacity 12 | 7 14 15 13 9 Most Carried 15 | 4 15 15 15 14 Average Carried 10 | 2 13 14 8 8 Final Capacity 15 | 8 15 15 15 10 Final Carried 15 | 4 15 15 15 8 Class Distribution -------------------- 75% | Mutant 21% | Hacker-Mutant 3% | Hacker-Scout Dominant Class ---------------- Mutant | -10/Materials Mutant | -10/Subcaves Mutant | -8/Scraptown Hacker-Mutant | -6/Factory Resources | -11 -10 -10 -8 -6 ----------- Run | Yrd Mat Sub Scr Fac Matter Collected 1019 | 171 343 109 . 396 Remotely . | . . . . . Salvage Created 1120 | . 498 45 . 577 Parts 86 | . 28 7 . 51 Haulers Intercepted 2 | . 2 . . . Recyclers Shooed 2 | . 1 . . 1 Parts Field Recycled . | . . . . . Retrieved Matter . | . . . . . Parts Self-Destructed 11 | . . 11 . . Prevented . | . . . . . Kills | -11 -10 -10 -8 -6 ------- Run | Yrd Mat Sub Scr Fac Combat Hostiles Destroyed 27 | . 13 3 . 11 Melee 3 | . . . . 3 Guns 16 | . 13 3 . . Cannons 4 | . . . . 4 AOE 4 | . . . . 4 Classes Destroyed 9 | . 5 . . 4 Worker 3 | . . . . 3 Builder 3 | . 1 . . 2 Hauler 2 | . 2 . . . Recycler 2 | . 1 . . 1 Operator 2 | . . . . 2 Watcher 1 | . . . . 1 Swarmer 19 | . 9 3 . 7 Grunt 4 | . 4 . . . Programmer 4 | . . . . 4 Best Kill Streak 5 | . 4 3 . 5 Combat Bots Only 5 | . 4 3 . 5 Max Kills in Single Turn 3 | . 2 1 . 3 Gunslinging 1 | . 1 . . . Exploded 3 | . . . . 3 Melee 1 | . . . . 1 Uniques/NPCs Destroyed . | . . . . . Combat | -11 -10 -10 -8 -6 -------- Run | Yrd Mat Sub Scr Fac Hostile Shots Fired 259 | . 58 16 . 185 Missed 87 | . 15 5 . 67 Hits 172 | . 43 11 . 118 Melee 3 | . . . . 3 Projectile 169 | . 43 11 . 115 AOE 1 | . . . . 1 Critical Strikes 7 | . . . . 7 Part Disruptions 1 | . . . . 1 Damage Taken 2344 | . 437 89 . 1818 Core 556 | . 70 10 . 476 Absorbed by Shields . | . . . . . Regen/Repaired (Parts) 69 | . . . . 69 Core Remaining (%) 84 | 100 . . 68 . Volleys Fired 65 | . 49 6 . 10 Largest 2 | . 2 2 . 1 Hottest 90 | . 40 40 . 90 Shots Fired 119 | . 98 11 . 10 Gun 108 | . 98 10 . . Cannon 7 | . . . . 7 Launcher 4 | . . 1 . 3 Special . | . . . . . Kinetic 108 | . 98 10 . . Thermal 7 | . . . . 7 Explosive 4 | . . 1 . 3 Electromagnetic . | . . . . . Robot Hit Streak 6 | . 6 3 . 4 Robot Miss Streak 3 | . 3 2 . 1 Penetration Max . | . . . . . Secondary Targets 3 | . 3 . . . Max Gunslinging Chain 1 | . 1 . . . Shots Hit Robots 98 | . 57 5 . 36 Core Hits 47 | . 23 3 . 21 Critical Kills . | . . . . . Critical Parts Destroyed 1 | . 1 . . . Critical Strikes 2 | . 1 . . 1 Destroy 1 | . 1 . . . Impale 1 | . . . . 1 Melee Attacks 72 | . . . . 72 Impact 2 | . . . . 2 Slashing 9 | . . . . 9 Piercing 59 | . . . . 59 Sneak Attacks 7 | . . . . 7 Combat Hostiles . | . . . . . Follow-up Attacks . | . . . . . Damage Inflicted 2606 | . 792 62 . 1752 Guns 828 | . 766 62 . . Cannons 190 | . . . . 190 Explosions 369 | . . . . 369 Melee 1172 | . . . . 1172 Ramming 47 | . 26 . . 21 Kinetic 828 | . 766 62 . . Thermal 190 | . . . . 190 Explosive 369 | . . . . 369 Electromagnetic . | . . . . . Impact 75 | . . . . 75 Slashing 189 | . . . . 189 Piercing 908 | . . . . 908 Highest Corruption 3 | . . . . 3 Average Corruption 1 | . . . . 1 Corruption Purged . | . . . . . Corruption Blocked . | . . . . . Effects 3 | . . . . 3 Message Errors 1 | . . . . 1 Heat Flow Errors 1 | . . . . 1 Data Loss (minor) 1 | . . . . 1 Overload Shots . | . . . . . Overflow Damage 91 | . . . . 91 Projectiles 12 | . . . . 12 Explosions 16 | . . . . 16 Melee 63 | . . . . 63 Knockbacks . | . . . . . Impact . | . . . . . Kinetic . | . . . . . Secondary . | . . . . . Self-Inflicted Damage 10 | . . . . 10 Shots . | . . . . . Rammed 6 | . 4 . . 2 Targets Rammed 7 | . 5 . . 2 Kicked . | . . . . . Crushed 1 | . 1 . . . Highest Temperature 125 | . 2 . . 125 Average Temperature 38 | . 2 . . 49 Received Heat Transfer 209 | . 150 . . 59 Siege Activations . | . . . . . Martial Activations . | . . . . . Shielding Activations . | . . . . . Robots Disrupted . | . . . . . Combat Hostiles . | . . . . . Robots Corrupted . | . . . . . Combat Hostiles . | . . . . . Parts Fried . | . . . . . Impact Corruptions . | . . . . . Robots Melted . | . . . . . Combat Hostiles . | . . . . . Parts Melted . | . . . . . Heat Transferred 225 | . . . . 225 Parts Sabotaged 2 | . . . . 2 Parts Stolen . | . . . . . Parts Stripped . | . . . . . Power Chain Reactions . | . . . . . Alert | -11 -10 -10 -8 -6 ------- Run | Yrd Mat Sub Scr Fac Maximum Alert Level . | . . . . . Low Security (%) 100 | 100 100 . . 100 Level 1 . | . . . . . Level 2 . | . . . . . Level 3 . | . . . . . Level 4 . | . . . . . Level 5 . | . . . . . High Security . | . . . . . Max Security . | . . . . . Peak Influence 169 | . 133 . . 169 Initial . | . . . . . Average 27 | . 32 . . 24 Influence Increases 1008 | . 334 70 . 604 Destroy 0b10 Robot/C 540 | . 260 60 . 220 Destroy 0b10 Robot/NC 65 | . 20 . . 45 Destroy Leader 116 | . 54 10 . 52 Successful Hack 40 | . . . . 40 Disable Machine 15 | . . . . 15 Destroy Structure 37 | . . . . 37 Partial Spotted 60 | . . . . 60 Lose Combat Pursuer 135 | . . . . 135 Influence Decreases 859 | . 251 153 . 455 Entered New Map 41 | . . 41 . . Time Decay 680 | . 251 112 . 317 Lost Part 138 | . . . . 138 Squads Dispatched 13 | . 1 . . 12 Investigation 7 | . . . . 7 Extermination 4 | . . . . 4 Reinforcement 2 | . 1 . . 1 Assault . | . . . . . Garrison . | . . . . . Intercept . | . . . . . Searches Triggered . | . . . . . Construction Impeded . | . . . . . Haulers Reinforced 1 | . . . . 1 Active Scanning Responses . | . . . . . Cargo Convoy Interrupts 1 | . . . . 1 Stealth | -11 -10 -10 -8 -6 --------- Run | Yrd Mat Sub Scr Fac Distress Signals 6 | . 5 . . 1 Communications Jammed . | . . . . . Distress Signals . | . . . . . Times Spotted 79 | . 23 3 . 53 Peak Tracking Total 20 | . 7 3 . 20 Tactical Retreats 7 | . . . . 7 Traps | -11 -10 -10 -8 -6 ------- Run | Yrd Mat Sub Scr Fac Traps Triggered 5 | . 1 . . 4 Indirectly . | . . . . . Trap Hack Attempts . | . . . . . Triggered . | . . . . . Disarmed . | . . . . . Reprogrammed . | . . . . . Reused . | . . . . . Traps Extracted . | . . . . . Installed . | . . . . . Triggered . | . . . . . Machines | -11 -10 -10 -8 -6 ---------- Run | Yrd Mat Sub Scr Fac Machines Disabled 1 | . . . . 1 Max in Single Turn 1 | . . . . 1 Garrison Access 1 | . . . . 1 Machines Repaired . | . . . . . Machines Dismantled . | . . . . . Machines Sabotaged . | . . . . . Overloaded Fab Kills . | . . . . . Hacking | -11 -10 -10 -8 -6 --------- Run | Yrd Mat Sub Scr Fac Machines Accessed 19 | . . . 3 16 Terminals 6 | . . . . 6 Fabricators 1 | . . . . 1 Repair Stations 1 | . . . . 1 Recycling Units 7 | . . . . 7 Scanalyzers . | . . . . . Garrison Access 1 | . . . . 1 Total Hacks 71 | . . . 37 34 Successful 57 | . . . 37 20 Failed 14 | . . . . 14 Catastrophic 3 | . . . . 3 Database Lockouts . | . . . . . Manual 16 | . . . . 16 Terminals 17 | . . . . 17 Fabricators 1 | . . . . 1 Repair Stations 5 | . . . . 5 Recycling Units 10 | . . . . 10 Scanalyzers . | . . . . . Garrison Access 1 | . . . . 1 Terminal Hacks 40 | . . . 37 3 Record 30 | . . . 30 . Robot Analysis 7 | . . . 7 . Prototype ID Bank 1 | . . . . 1 Terminal Index 1 | . . . . 1 Locate Traps 1 | . . . . 1 Fabricator Hacks 1 | . . . . 1 Network Status 1 | . . . . 1 Repair Station Hacks 3 | . . . . 3 Scan Component 2 | . . . . 2 Repair 1 | . . . . 1 Recycling Unit Hacks . | . . . . . Scanalyzer . | . . . . . Garrison Access Hacks 1 | . . . . 1 Seal Access 1 | . . . . 1 Unauthorized Hacks 12 | . . . . 12 Terminals 5 | . . . . 5 Track 1 | . . . . 1 Assimilate 1 | . . . . 1 Botnet 1 | . . . . 1 Operators 2 | . . . . 2 Fabricators . | . . . . . Repair Stations . | . . . . . Recycling Units 7 | . . . . 7 Fedlink 7 | . . . . 7 Scanalyzers . | . . . . . Garrison Access . | . . . . . Data Cores Recovered 2 | . . . . 2 Used 1 | . . . . 1 Hacking Detections 10 | . . . . 10 Full Trace Events . | . . . . . Feedback Events . | . . . . . Feedback Blocked . | . . . . . Robot Schematics Acquired . | . . . . . Robots Built . | . . . . . Authchips . | . . . . . Time . | . . . . . Total Robot Build Rating . | . . . . . Part Schematics Acquired . | . . . . . Parts Built . | . . . . . Authchips . | . . . . . Time . | . . . . . Total Part Build Rating . | . . . . . Parts Repaired 1 | . . . . 1 Time 25 | . . . . 25 Parts Recycled . | . . . . . Recycled Matter . | . . . . . Retrieved Matter . | . . . . . Retrieved Components . | . . . . . Parts Scanalyzed . | . . . . . Part Schematics Acquired . | . . . . . Parts Damaged . | . . . . . Bothacking | -11 -10 -10 -8 -6 ------------ Run | Yrd Mat Sub Scr Fac Used RIF Installer . | . . . . . Robots Hacked 1 | . . . . 1 Non-combat 1 | . . . . 1 Combat . | . . . . . Robot Hacks Applied 1 | . . . . 1 find_chute 1 | . . . . 1 Relay Couplers Released . | . . . . . Fabnet Peak Effective % . | . . . . . Robots Rewired . | . . . . . Allies Hacked 1 | . . . . 1 Hacks Repelled . | . . . . . Allies | -11 -10 -10 -8 -6 -------- Run | Yrd Mat Sub Scr Fac Total Allies 1 | . . . . 1 Largest Group 1 | . . . . 1 Highest-Rated Group 26 | . . . . 26 Highest-Rated Ally 26 | . . . . 26 Total Orders . | . . . . . Ally Attacks . | . . . . . Total Damage . | . . . . . Kills . | . . . . . Allies Corrupted . | . . . . . Allies Melted . | . . . . . Intel | -11 -10 -10 -8 -6 ------- Run | Yrd Mat Sub Scr Fac Active Infowar (turns) 1022 | . . . 41 981 Sensors 977 | . . . . 977 Structural 44 | . . . 41 3 ECM 1 | . . . . 1 Robot Analysis Total 7 | . . . 7 . Derelict Logs Recovered 4 | . . 1 3 . Drone Launches . | . . . . . Drone Recoveries . | . . . . . Exploration | -11 -10 -10 -8 -6 ------------- Run | Yrd Mat Sub Scr Fac Turns Passed 4648 | 61 1231 356 1814 1186 Spaces Moved 3587 | 34 453 171 1472 1457 Core 523 | 5 . . 518 . Treads 1475 | 29 453 171 822 . Legs 129 | . . . 129 . Wheels . | . . . . . Hover 1288 | . . . . 1288 Flight 172 | . . . 3 169 Fastest Speed 32 | 50 160 160 37 32 Average Speed 98 | 143 160 160 117 51 Slowest Speed 295 | 160 160 160 160 295 Overloaded Moves . | . . . . . Propulsion Burnouts . | . . . . . Robots Hopped . | . . . . . Potential Cave-ins . | . . . . . Cave-ins Triggered . | . . . . . Exploration Rate (%) 44 | 4 77 10 87 44 Regions Visited 4 Branch Regions 2 Pre-discovered Areas 5 | . . 1 3 1 Known Exits Taken 1 | . . . 1 . Unknown Exits Taken 3 | 1 1 1 . . Scrap Searched 10 | . . 4 6 . Spaces Dug 31 | . . . . 31 Terrain Destroyed 40 | . . 3 . 37 Melee 31 | . . . . 31 Projectile 2 | . . . . 2 AOE 7 | . . 3 . 4 Terrain Rammed . | . . . . . Walls Destroyed . | . . . . . Machines Disabled . | . . . . . Actions | -11 -10 -10 -8 -6 --------- Run | Yrd Mat Sub Scr Fac Total 4458 | 43 858 244 1573 1740 Wait 531 | . 333 59 13 126 Move 3583 | 33 452 170 1471 1457 Hop . | . . . . . Pick Up 70 | 4 13 4 39 10 Fast Attach 37 | 6 3 . 7 21 Attach 16 | . . . 1 15 Detach 3 | . . . 3 . Swap 9 | . . 1 . 8 Drop 65 | . 3 4 39 19 Fire 65 | . 49 6 . 10 Melee 72 | . . . . 72 Ram 2 | . . . . 2 Kick . | . . . . . Crush 5 | . 5 . . . Escape Stasis . | . . . . . Rewire . | . . . . . Trap . | . . . . . Miscellaneous . | . . . . . Route ------- -11/Scrapyard -10/Materials (discovered 5 exits: [*Mat x3] / [*Min] / [*Sub]) -10/Subcaves -8/Scraptown (discovered 2 exits: *Fac x2) -6/Factory (discovered 4 exits: Fac x2 / *Low x2) History --------- Turn | Location | Event 6 | -11/Scrapyard | Discovered new exit (range 15) 62 | -11/Scrapyard | Entered Materials 302 | -10/Materials | Build established: Mutant 665 | -10/Materials | Discovered new exit (range 10) 798 | -10/Materials | Discovered new exit (range 7) 867 | -10/Materials | Discovered new exit (range 6) 1014 | -10/Materials | Discovered new exit (range 11) 1270 | -10/Materials | Discovered new exit (range 6) 1293 | -10/Materials | Entered Subcaves 1294 | -10/Subcaves | Approached by a straggling Scientist 1483 | -10/Subcaves | Scientist uncovered a shortcut to Scraptown 1649 | -10/Subcaves | Entered Scraptown 1753 | -8/Scraptown | Visited UFD Registry 1753 | -8/Scraptown | Registered with UFD as "Chainfunk" 1973 | -8/Scraptown | Visited Shadow of the Wyrm 1983 | -8/Scraptown | Visited Fellowship of the Rings 2008 | -8/Scraptown | Visited CR-KLE's Repair Center 2071 | -8/Scraptown | Scanned Subdweller tech in exchange for log data 2074 | -8/Scraptown | Learned location of 1 exit from Factory 2076 | -8/Scraptown | Learned location of 1 exit from Upper Caves 2077 | -8/Scraptown | Learned Research stockpile data 2093 | -8/Scraptown | Discovered new exit (range 13) 2549 | -8/Scraptown | Visited Symbiants 2580 | -8/Scraptown | Visited IN-MT5's Study 2613 | -8/Scraptown | Visited TADAMA 2650 | -8/Scraptown | Visited Bundlers 3001 | -8/Scraptown | Visited Curators Association 3009 | -8/Scraptown | Visited Cartography Club 3041 | -8/Scraptown | Learned location of Storage (-8) 3041 | -8/Scraptown | Learned location of Hub_04(d) (-5) 3041 | -8/Scraptown | Learned location of Armory (-4) 3041 | -8/Scraptown | Learned 12 Factory zone layouts 3041 | -8/Scraptown | Learned 20 Factory zone layouts 3041 | -8/Scraptown | Learned 16 Research zone layouts 3041 | -8/Scraptown | Learned 4 Storage zone layouts 3041 | -8/Scraptown | Learned 16 Proximity Caves zone layouts 3041 | -8/Scraptown | Learned 12 Lower Caves zone layouts 3041 | -8/Scraptown | Learned location of 2 exits from Research 3041 | -8/Scraptown | Learned location of 1 exit from Upper Caves 3056 | -8/Scraptown | Found Deep Structural Scanner 3121 | -8/Scraptown | Visited Derelict Rescue Squad 3124 | -8/Scraptown | Found DRS Beacon 3135 | -8/Scraptown | Visited Supply Room 3154 | -8/Scraptown | Visited Junk Repository 3185 | -8/Scraptown | Visited Analyses Database 3196 | -8/Scraptown | Visited A0-MCA Data Center 3199 | -8/Scraptown | Given a B- rating by A0-MCA 3202 | -8/Scraptown | Found A0-MCA's Component Scanner 3211 | -8/Scraptown | Visited Chapter 10 3219 | -8/Scraptown | Visited Supply Room 3227 | -8/Scraptown | Visited Scrapoid Pod Storage 3397 | -8/Scraptown | Met Optimus 3397 | -8/Scraptown | Accepted into 0bPrime 3458 | -8/Scraptown | Discovered new exit (range 5) 3462 | -8/Scraptown | Identified exit to Factory 3463 | -8/Scraptown | Entered Factory 3463 | -6/Factory | Evolved 8 slots: Power x1, Propulsion x3, Utility x4 3464 | -6/Factory | Identified exit to Lower Caves 3465 | -6/Factory | Identified exit to Factory 3620 | -6/Factory | Loaded intel: 8 recycling unit locations 3785 | -6/Factory | Learned location of Protoforge (-2) 3939 | -6/Factory | Build established: Hacker-Mutant 4162 | -6/Factory | Lost 4 parts (1p2n1u) 4424 | -6/Factory | Assembled infested ambush trap array 4514 | -6/Factory | Allied Derelicts emerged from ambush trap array 4541 | -6/Factory | Repaired Gravmag Array 4576 | -6/Factory | Cargo convoy interrupted 4601 | -6/Factory | Lost 3 allies 4644 | -6/Factory | Core integrity fell below 50% 4649 | -6/Factory | Self-destructed Last Messages --------------- 04629_ Hacking Suite destroyed. 04632_ Katana destroyed. 04632_ Destroyed Lgt. Nuclear Core. 04632_ S-27 Virus destroyed. 04634_ Slug penetrates Wall. 04636_ P-60 Hacker destroyed. 04638_ S-27 Virus destroyed. 04640_ Slug penetrates Wall. 04643_ Imp. Cesium-ion Thruster destroyed. 04643_ Slug penetrates Wall. 04643_ P-60 Hacker destroyed. 04644_ Slug penetrates Wall. 04645_ Assembly Bed disabled. 04646_ Slug penetrates Wall. 04647_ Wall collapses. 04647_ Acquired Lgt. Nuclear Core. 04647_ Penetrated by Slug. 04647_ Critical hit (Destroy). 04647_ Hrd. Medium Armor Plating destroyed. 04648_ Lgt. Nuclear Core destroyed. Map ----- +----------------------------------------------------+ | ???????+############???????# #??????# "??? ""???? | | ??????? #???????# #??????# "??? "????? | | ??????? #???????# #??????? ???? ?????? | | ??????? #???????# #??????? ??????????? | | ??????? #???????# #???????????????????? | | ??????? #???????# #???????????????????? | | ??????? #???????# #???????????????????? | | ??????? #???????# ###### #????????? | | ??????? #???????# " ???????? | | ???????""" """ #???#####+###### #????????? | | ???????""" """ #???# ! #???????????????? | | ???????""" """ #???# #???????????????? | | ????# #???# ] "Y" #???????????????? | | ????# """ """ #??## """ #???????????????? | | ????# """ """ ####"##########???????????????? | | ????# """ """ # #????????????????? | | ????# # #????????????????? | | ????# """ """ # """""" #????????????????? | | ##### """ """ # """""" #????????????????? | | # """ """ # """""" #????????????????? | | # # " """" #????????????????? | | # """ """ # ##???????????????? | | # """ """ # === ;#???????????????? | | # """ """ # ===[ #????????????????? | | + # ===%= #????????????????? | | # """ """ # @! #????????????????? | | # """ """ # xxx* #????????????????? | | # """ """ #####x/[#########?????????????? | | # hh!=! ?????????? | | # """ h i* ?????????? | | # """ ! ?????????? | | ##### """ ![ ??????????? | | ????# ??????????? | | ????# ???????????? | | ????######## * ??????????? | | ????????########/################+####???????????? | | ????????# !=% #??# ? ?????????????? | | ????????# T #????????? ????????????? | | ????????# """ """ """ #?????????? ????????????? | | ????????# """ """ """ #????????????????????????? | | ????????# """ """ """ #????????????????????????? | | ????????# #????????????????????????? | | ????????# """ """ """ #????????????????????????? | | ????????# """ """ """ #????????????????????????? | | ????????# """ """ """ #????????????????????????? | | ???????## #????????????????????????? | | ???#############"#########???????????????????????? | | ???# = ! ##??????##???????????????????????? | | ???# #????????????????????????????????? | | ???# ! #????????????????????????????????? | +----------------------------------------------------+ Best States ------------- Heat Dissipation 37 Energy Generation 19 Energy Capacity 250 Matter Stores 300 Matter Capacity 300 Sight Range 16 Robot Scan Range 16 Terrain Scan Density 10 Armor Coverage 225 Evasion (%) 73 Recoil Reduction 2 Offensive Hacking 10 Defensive Hacking 20 Item Schematics ----------------- None Robot Schematics ------------------ None Fabricated ------------ Nothing Repaired ---------- Gravmag Array | 61% | -6/Factory Alien Tech Used ----------------- None Achievements -------------- None Challenges ------------ None Game ------ Seed SmallSiegeCalibrator Manual? 0 Play Time 00:38:12 Cumulative 292.1 hours Start 2025.08.23 @ 20:23:49 End 2025.08.23 @ 21:00:03 Sessions 1 Manual Loads 0 Difficulty Rogue Special Mode None Game No. 210 Rogue 210 Adventurer 0 Explorer 0 Win Type - Total 17 Types 8/0/5/1/1/0/0/1/0/1 Lore% 79 Gallery% 76 Achievement% 76 Wizard Run 0 Options --------- Layout 1 ASCII 0 Keyboard 0 Movement Mouse Keybinds 0 Fullscreen 2 Font 24/Smallcaps Map View 50x35 Zoom Use 0% Tactical HUD 1 Map Filters NONE Filters NONE Steam 1 RUN: ff8c5034-32e7-464d-86a1-d31950c91216